[Event "Prague Festival Challengers 2024"]
[Site "Prague"]
[Date "2024.03.07"]
[Round "9.4"]
[White "Stalmach, Richard"]
[Black "Rodshtein, Maxim"]
[Result "1/2-1/2"]
[ECO "E09"]
[WhiteElo "2433"]
[BlackElo "2580"]
[Annotator "TA"]
[PlyCount "185"]
[EventDate "2024.02.22"]
[EventType "tourn"]
[EventCountry "CZE"]
[SourceTitle "playchess.com"]
[Source "ChessBase"]
[SourceQuality "1"]
[TimeControl "40/5400+30:1800+30"]

{[%evp 19,185,24,20,11,43,26,41,39,51,44,41,37,41,34,31,35,33,21,26,18,32,24,9,8,33,-77,0,0,-1,-4,0,-7,-11,-25,-27,-38,-45,-45,-28,-20,-8,-8,-8,-8,-8,-25,-25,-39,-40,-82,-31,-186,-37,-338,-282,-242,-230,-227,0,0,0,-77,-77,-77,-77,-77,-77,-77,-77,-237,-230,-218,-203,-612,-520,-100,-28,-23,-2,-694,-656,-643,-599,-578,-450,-682,-677,-589,-665,-665,-555,-668,-679,-643,-579,-682,-580,-576,-576,-503,-365,-358,-355,-265,-659,-566,-507,-662,-637,-645,-666,-500,-481,-688,-577,-582,-524,-727,-609,-750,-742,-735,-428,-300,-619,-695,-742,-735,-735,-695,-612,-556,-527,-527,-245,-238,-83,-83,-87,-87,-88,-88,0,0,0,0,0,0,0,0,0,0,0,0,0,0,0,0,0,0,0,0,0,0,0,0,0,0]} 1. d4 {[%emt 0:00:34]} Nf6 {[%emt 0:00:06]} 2. c4 {[%emt 0:00:00]} e6 {[%emt 0:00:07]} 3. g3 {[%emt 0:00:09]} d5 {[%emt 0:06:38]} 4. Bg2 {[%emt 0:00:21]} Be7 {[%emt 0:00:08]} 5. Nf3 {[%emt 0:00:06]} O-O {[%emt 0:00:05]} 6. O-O {[%emt 0:00:08]} c6 {[%emt 0:01:34]} 7. b3 {[%emt 0:00:39]} a5 {[%emt 0:01:54]} 8. Bb2 {[%emt 0:02:55]} b6 {[%emt 0:03:17]} 9. Qc2 {[%emt 0:00:44]} Nbd7 {[%emt 0:14:59]} 10. Nbd2 {[%emt 0:00:37]} Bb7 {[%emt 0:12:18]} 11. e4 {[%emt 0:01:25]} a4 {[%emt 0:04:32]} 12. e5 {[%emt 0:04:28]} (12. bxa4 Nxe4 13. Nxe4 dxe4 14. Qxe4 Rxa4 $11) 12... Ne8 {[%emt 0:00:06]} 13. cxd5 {[%emt 0:04:39] White is slightly better.} cxd5 {[%emt 0:16:13]} 14. bxa4 {[%emt 0:01:05]} Qc7 {[%emt 0:00:12]} 15. Qb3 {[%emt 0:05:30]} Bc6 {[%emt 0:04:10]} 16. Rfc1 {[%emt 0:03:15]} Qb7 $1 {[%emt 0:00:05]} 17. Ba3 {[%emt 0:01:11]} Bxa4 {[%emt 0:00:54]} 18. Qb2 {[%emt 0:03:00]} (18. Qd3 {is more complex.} Bxa3 19. Ng5 Bc2 20. Rxc2 g6 21. Nf1) 18... Bxa3 {[%emt 0:01:22]} 19. Qxa3 {[%emt 0:00:05]} Nc7 {[%emt 0:00:50]} 20. Qd6 {[%emt 0:15:18]} Rfc8 {[%emt 0:05:06]} 21. Bf1 {[%emt 0:00:16]} Na6 {[%emt 0:03:00]} 22. Bd3 {[%emt 0:04:38] [#]} (22. Rxc8+ $14 Qxc8 23. Qa3) 22... Ndc5 $1 {[%emt 0:02:42]} 23. Bxa6 $11 {[%emt 0:06:58]} (23. dxc5 Nxc5 24. Rab1 Nxd3 (24... Rc6 $2 25. Rxc5 Rxd6 26. exd6 $18) 25. Rxc8+ Qxc8 26. Rxb6 h6 $17) 23... Nxa6 {[%emt 0:01:09]} 24. Rab1 {[%emt 0:00:56]} b5 {[%emt 0:07:19]} 25. Ne1 {[%emt 0:09:49] Inhibits Bc2.} b4 {[%emt 0:05:48]} 26. Rxc8+ {[%emt 0:00:57]} Qxc8 {[%emt 0:00:53]} 27. Nd3 {[%emt 0:04:19]} Qc2 {[%emt 0:07:35][%csl LRa2,LRd2,LRd3]} 28. Nxb4 {[%emt 0:00:05]} Qxd2 {[%emt 0:00:20]} 29. Nxa6 {[%emt 0:00:08][%cal Od6b8] Hoping for Qb8+!} h6 {[%emt 0:00:07][%cal Oa4c2]} 30. Qb4 {[%emt 0:16:12]} Qxa2 {[%emt 0:00:14]} 31. Nc5 {[%emt 0:00:04]} Bc2 {[%emt 0:00:28]} 32. Rc1 {[%emt 0:02:11]} (32. Rb2 {seems wilder.} Qa1+ 33. Kg2 Qd1 34. Qc3) 32... Bf5 {[%emt 0:00:05]} 33. h4 {[%emt 0:00:41]} Kh7 {[%emt 0:02:03]} 34. Nd7 {[%emt 0:04:22]} Be4 {[%emt 0:00:35]} (34... Kg6 $17) 35. Qe7 $2 {[%emt 0:04:53]} (35. Nf8+ $1 $15 Kg8 36. Nd7) 35... Kg8 {[%emt 0:00:32]} (35... Qb2 $19 36. Rf1 Kg8 (36... Qxd4 37. Qxf7 Bf5 38. Nf8+ Rxf8 39. Qxf8 $11)) 36. h5 $2 {[%emt 0:04:55][%mdl 8192]} ({White should play} 36. Qb4 $1 $15) 36... Qb2 {[%emt 0:00:31]} 37. Qc5 {[%emt 0:00:17][%cal Oc5c8]} Kh7 {[%emt 0:00:17]} 38. Qc7 {[%emt 0:00:37][%cal Od7f6]} g5 $2 $40 {[%emt 0:00:44][%mdl 128] Black attacks.} (38... Qxd4 39. Nf6+ gxf6 40. Qxf7+ Kh8 41. Qxf6+ Kg8 42. Qxe6+ Kh8 43. Qxh6+ Kg8 44. Qe6+ Kf8 45. Qh6+ Kg8 46. Qg5+ Kf8 47. g4 $11) (38... Rg8 $1 $19 {[%cal Ob2d2] White must now prevent ...Qd2!} 39. Qc3 Qe2) 39. Nf6+ {[%emt 0:00:55]} Kg7 {[%emt 0:00:02] ( -> ...Ra1)} 40. Nxe4 {[%emt 0:00:37]} (40. Qc5 $1 $11) 40... dxe4 $17 {[%emt 0:00:02]} 41. Qc3 {[%emt 0:23:09]} Qxc3 {[%emt 0:03:16]} 42. Rxc3 {[%emt 0:00:15][%mdl 4096] Endgame. KR-KR} Ra4 {[%emt 0:00:03]} 43. Re3 {[%emt 0:00:05]} Rxd4 {[%emt 0:00:06]} 44. g4 $2 {[%emt 0:03:06]} (44. Kf1 $17) 44... f5 $1 $19 {[%emt 0:22:24]} 45. Ra3 {[%emt 0:01:00]} e3 {[%emt 0:01:46]} ({And not} 45... fxg4 46. Ra7+ Kg8 47. Re7 $11) 46. Ra7+ $2 {[%emt 0:01:17]} (46. fxe3 Rxg4+ 47. Kf1) 46... Kf8 {[%emt 0:00:23]} 47. fxe3 {[%emt 0:02:31]} (47. Ra8+ $19 Ke7 48. fxe3 Rxg4+ 49. Kf2) 47... Rxg4+ $17 {[%emt 0:00:06]} 48. Kf2 {[%emt 0:00:03]} Rh4 {[%emt 0:01:15]} 49. Ra6 $2 {[%emt 0:01:06][%mdl 8192]} (49. Ra8+ $11 Ke7 50. Ra7+ Kd8 51. Ra6) 49... Ke7 $19 {[%emt 0:00:09]} ({Less strong is} 49... Rxh5 50. Rxe6 g4 51. Rf6+ Ke7 52. Kf1 $11) 50. Ra7+ {[%emt 0:00:04]} Kd8 {[%emt 0:00:12]} 51. e4 {[%emt 0:01:38]} fxe4 {[%emt 0:04:42]} (51... Rxe4 $2 52. Rh7 $17) 52. Ra8+ {[%emt 0:01:10]} (52. Ke3 $142 Rxh5 53. Kxe4) 52... Kd7 {[%emt 0:00:06]} 53. Ra7+ {[%emt 0:00:33]} Kc6 {[%emt 0:00:17][%cal Oc6d5] Strongly threatening ...Kd5!} 54. Ke3 {[%emt 0:00:03]} Rxh5 {[%emt 0:00:54] And now ...g4 would win.} 55. Ra6+ {[%emt 0:00:37]} Kd5 {[%emt 0:00:19]} 56. Ra5+ {[%emt 0:00:07]} Kc4 {[%emt 0:00:56] ...Rh3+ is the strong threat.} 57. Ra6 {[%emt 0:00:15]} Rh3+ {[%emt 0:00:45]} 58. Kxe4 {[%emt 0:00:04]} Rh4+ {[%emt 0:00:04]} 59. Ke3 {[%emt 0:00:04]} Kd5 {[%emt 0:00:10]} 60. Ra5+ {[%emt 0:00:04] [#]} Kc6 $1 {[%emt 0:00:05]} 61. Ra6+ {[%emt 0:00:05]} Kd7 $2 {[%emt 0:00:11]} (61... Kc5 62. Rd6 h5 63. Rxe6 Kd5) 62. Ra7+ {[%emt 0:00:03]} Ke8 {[%emt 0:00:07]} 63. Rh7 {[%emt 0:00:16]} Kf8 {[%emt 0:00:42]} 64. Kf3 {[%emt 0:01:07]} h5 {[%emt 0:02:16]} 65. Kg2 {[%emt 0:03:28]} Kg8 {[%emt 0:00:38]} 66. Re7 {[%emt 0:00:49]} Rg4+ {[%emt 0:00:32]} 67. Kh3 {[%emt 0:00:31]} Re4 {[%emt 0:00:36]} 68. Rxe6 {[%emt 0:00:01]} Kg7 {[%emt 0:01:25] Wards off Rg6+} 69. Kg3 {[%emt 0:00:55]} Rg4+ {[%emt 0:00:35]} 70. Kh3 {[%emt 0:00:04]} Rf4 {[%emt 0:00:33]} 71. Ra6 {[%emt 0:00:44]} Re4 {[%emt 0:00:23]} 72. Re6 {[%emt 0:00:01]} Re3+ {[%emt 0:00:24]} 73. Kg2 {[%emt 0:00:04]} h4 {[%emt 0:00:45]} 74. Kf2 {[%emt 0:00:54]} Re4 {[%emt 0:00:05]} 75. Kf3 {[%emt 0:00:22]} Rf4+ {[%emt 0:00:05]} 76. Kg2 {[%emt 0:00:03]} Kf7 {[%emt 0:01:21]} (76... Rg4+ $142 77. Kf2 Rf4+ 78. Kg2 g4) 77. Ra6 {[%emt 0:00:29] [#]} Re4 $2 {[%emt 0:00:31]} (77... Rg4+ $1 $19 {is more deadly.} 78. Kf3 Rc4) 78. Kh3 $17 {[%emt 0:01:28]} Kg7 {[%emt 0:00:35]} 79. Rb6 {[%emt 0:00:45]} Rf4 {[%emt 0:00:43]} 80. Ra6 {[%emt 0:00:25]} Rf3+ {[%emt 0:00:10]} ({Better is} 80... Rc4 $17) 81. Kg4 $11 {[%emt 0:00:40] The position is equal.} Rg3+ {[%emt 0:00:06]} 82. Kf5 {[%emt 0:00:03]} h3 {[%emt 0:00:39]} (82... Rg1 $5) 83. Ra7+ {[%emt 0:00:38]} (83. Rg6+ Kh7 84. Ra6 g4 (84... h2 85. Ra7+ Kh6 86. Ra8 $17) 85. Ra7+ Kg8 86. Ra8+ Kg7 87. Ra7+ Kf8 88. Ra8+ Ke7 89. Ra7+ Kd8 90. Ra8+ Kc7 $19) 83... Kg8 {[%emt 0:01:00] ...g4 would now be deadly.} 84. Ra8+ {[%emt 0:00:30]} Kf7 {[%emt 0:00:30]} (84... Kh7 $5) 85. e6+ {[%emt 0:00:34]} Ke7 {[%emt 0:00:04]} 86. Ra7+ {[%emt 0:00:06]} Kd6 {[%emt 0:00:29]} 87. Rd7+ {[%emt 0:00:03]} Kc6 {[%emt 0:00:09]} 88. Rd2 {[%emt 0:00:59]} Re3 {[%emt 0:00:14]} 89. Kxg5 {[%emt 0:00:04]} Rxe6 {[%emt 0:00:04]} 90. Rh2 {[%emt 0:00:05]} Re3 {[%emt 0:00:04]} 91. Kg4 {[%emt 0:00:04]} Kd5 {[%emt 0:00:02]} 92. Rxh3 {[%emt 0:00:04]} Rxh3 {[%emt 0:00:02]} 93. Kxh3 {[%emt 0:00:06] And White is the lucky defender.   Weighted Error Value: White=0.53/Black=0.22 (precise) .  Loses game:     	White=2     	---        Missed win:     	---       	Black=1      Mistake:       	White=7     	Black=7      Inaccurate:     	White=1     	Black=1      OK:         	White=27    	Black=30     Best:        	White=13    	Black=3      Strong:       	---       	Black=3} 1/2-1/2

[Event "Prague Festival Challengers 2024"]
[Site "Prague"]
[Date "2024.03.07"]
[Round "9.5"]
[White "Hrbek, Stepan"]
[Black "Finek, Vaclav"]
[Result "1/2-1/2"]
[ECO "C43"]
[WhiteElo "2426"]
[BlackElo "2416"]
[Annotator "TA"]
[PlyCount "188"]
[EventDate "2024.02.22"]
[EventType "tourn"]
[EventCountry "CZE"]
[SourceTitle "playchess.com"]
[Source "ChessBase"]
[SourceQuality "1"]
[TimeControl "40/5400+30:1800+30"]

{[%evp 14,188,1,0,0,0,0,0,13,0,18,14,19,16,10,20,33,30,47,60,65,57,56,56,73,69,66,72,76,31,21,24,43,25,53,50,83,87,157,118,250,150,145,158,150,152,143,142,154,154,170,170,170,170,179,168,179,179,178,151,331,331,331,201,195,151,151,49,49,28,36,20,102,89,103,92,92,16,16,16,16,16,16,10,25,25,25,10,10,0,25,25,60,60,156,60,60,60,85,85,85,85,85,85,85,85,85,85,85,85,85,12,85,0,85,85,85,48,55,47,55,55,55,55,55,55,55,55,55,55,55,55,55,50,50,50,50,0,50,0,35,0,35,35,35,35,35,35,35,35,35,0,35,0,83,0,83,83,83,83,83,83,83,0,83,83,83,83,83,8,83,0,83,83,83,0,0]} 1. e4 {[%emt 0:00:12]} e5 {[%emt 0:00:04]} 2. Nf3 {[%emt 0:00:12]} Nf6 {[%emt 0:00:04]} 3. d4 {[%emt 0:00:18]} Nxe4 {[%emt 0:00:06]} 4. Bd3 {[%emt 0:00:06]} d5 {[%emt 0:00:04]} 5. Nxe5 {[%emt 0:00:09]} Nd7 {[%emt 0:00:04]} 6. Nc3 {[%emt 0:00:19]} Nxc3 {[%emt 0:00:09]} 7. bxc3 {[%emt 0:00:06]} Nxe5 {[%emt 0:00:04]} 8. dxe5 {[%emt 0:00:13]} Bc5 {[%emt 0:00:09]} 9. O-O {[%emt 0:00:37]} O-O {[%emt 0:00:07][%cal Bh8f8,Bf8e8,Be8e6][%mdl 32]} 10. Qh5 {[%emt 0:01:38][%csl Gd3][%cal Rh5h7]} g6 {[%emt 0:00:04]} 11. Qh6 {[%emt 0:00:05]} Re8 {[%emt 0:00:04]} 12. Bg5 {[%emt 0:00:22][%cal Bc1g5,Bg5d8,Bd8c7,Bc7d6][%mdl 32]} Bf8 {[%emt 0:00:12]} 13. Bxd8 {[%emt 0:00:12]} Bxh6 {[%emt 0:00:04]} 14. Bxc7 {[%emt 0:00:06]} Bf5 {[%emt 0:00:09]} 15. Rad1 $36 {[%emt 0:00:06][%cal Ba1d1,Bd1d5,Bd5c5,Bc5c2][%mdl 2080] Droht Bxf5 und aus. Weiss hat Initiative.} Rac8 {[%emt 0:02:17]} 16. Bb5 {[%emt 0:04:25][%csl LRd5,LRe8]} Re6 {[%emt 0:07:20]} 17. Bd6 {[%emt 0:00:11]} Rxc3 {[%emt 0:03:12]} 18. Rxd5 {[%emt 0:02:30]} Rxc2 {[%emt 0:23:43][%cal Of5e4]} 19. Bd7 {[%emt 0:32:55]} Rxa2 {[%emt 0:03:17][%cal Of5e4]} 20. Bxe6 {[%emt 0:00:22]} Bxe6 {[%emt 0:00:05]} 21. Rc5 {[%emt 0:00:42]} Bd2 {[%emt 0:05:54]} 22. h4 {[%emt 0:07:05]} Kg7 {[%emt 0:09:49]} 23. Be7 {[%emt 0:05:32]} Ba5 {[%emt 0:04:15]} 24. Rfc1 {[%emt 0:09:27]} a6 {[%emt 0:05:33]} 25. R5c2 $1 {[%emt 0:15:39]} Ra4 {[%emt 0:03:34]} ({Günstiger ist} 25... Rxc2 26. Rxc2 Bd7) 26. f3 {[%emt 0:03:55][%cal Oc2c8]} Rd4 {[%emt 0:07:36]} (26... h5 $16) 27. g4 {[%emt 0:06:20]} Bd8 {[%emt 0:02:47]} 28. Bxd8 {[%emt 0:00:51]} Rxd8 $16 {[%emt 0:00:05][%mdl 4096] Endspiel. KRR-KRB} 29. Rc7 {[%emt 0:02:16]} Rd5 {[%emt 0:00:54]} 30. R1c5 {[%emt 0:00:45]} Rd3 {[%emt 0:01:53] [#]} 31. Rc3 $1 {[%emt 0:00:27]} ({Schwächer ist} 31. Rxb7 Rxf3 32. g5 Rf4 $14) 31... Rd1+ {[%emt 0:02:16]} 32. Kf2 {[%emt 0:00:04]} Rb1 {[%emt 0:04:36]} 33. Re7 {[%emt 0:00:09]} Kf8 {[%emt 0:06:08]} 34. Rcc7 {[%emt 0:00:09]} Rb5 {[%emt 0:01:46]} 35. Rxb7 {[%emt 0:05:51]} Rxe5 {[%emt 0:00:07]} 36. Rec7 {[%emt 0:01:37]} a5 $2 {[%emt 0:04:07]} (36... Rb5 $16 37. Rxb5 axb5) 37. Rb8+ $18 {[%emt 0:01:36]} Kg7 {[%emt 0:00:09]} 38. Ra7 {[%emt 0:00:12]} Rc5 {[%emt 0:03:16]} 39. Ke3 {[%emt 0:01:38]} h6 {[%emt 0:01:33]} 40. Rba8 {[%emt 0:00:38]} (40. Rb6 $16 Ba2 41. Kf2) 40... Rc3+ $1 $14 {[%emt 0:01:16]} 41. Ke4 {[%emt 0:01:12][%cal Oa8d8]} Bb3 $1 {[%emt 0:07:09]} 42. Rd8 {[%emt 0:04:09]} a4 {[%emt 0:01:53]} (42... g5 $1 $11) 43. Kf4 {[%emt 0:08:15]} Rc4+ {[%emt 0:02:51]} 44. Kg3 {[%emt 0:00:32] Weiß steht aktiver.} Rc5 {[%emt 0:06:04]} 45. f4 {[%emt 0:09:54]} (45. Raa8 $16) 45... Rc3+ $11 {[%emt 0:01:03]} 46. Kg2 {[%emt 0:00:46] Und jetzt g5 wäre schön.} Rc2+ {[%emt 0:04:28]} 47. Kf3 {[%emt 0:00:21]} Rc3+ {[%emt 0:00:11]} 48. Ke2 {[%emt 0:01:07] Droht stark g5.} Rc2+ {[%emt 0:01:07]} 49. Ke3 {[%emt 0:01:34] Und g5 würde nun gewinnen.} Rc3+ {[%emt 0:00:49]} 50. Kd2 {[%emt 0:00:20]} Rc4 {[%emt 0:02:34]} 51. Ke3 {[%emt 0:04:12] g5 wäre nun fies.} Rc3+ {[%emt 0:00:06]} 52. Rd3 {[%emt 0:02:11]} Rxd3+ {[%emt 0:01:56]} 53. Kxd3 {[%emt 0:00:07] KR-KB} Bd1 {[%emt 0:00:07]} ({Vorzuziehen ist} 53... g5 $1 $14) 54. Ke4 {[%emt 0:01:46]} (54. g5 $16) 54... Bxg4 $14 {[%emt 0:02:44]} 55. Rxa4 {[%emt 0:00:02]} h5 {[%emt 0:01:12]} 56. Ra5 {[%emt 0:00:50]} Kf6 {[%emt 0:00:28]} 57. Ra6+ {[%emt 0:00:07]} Kg7 {[%emt 0:00:23]} 58. Ke5 {[%emt 0:00:14]} Bh3 {[%emt 0:00:22]} 59. Rf6 {[%emt 0:00:24]} Bg4 {[%emt 0:00:20]} 60. Rd6 {[%emt 0:00:07]} Bh3 {[%emt 0:00:44]} 61. Rd5 {[%emt 0:00:12]} Bg4 {[%emt 0:00:29]} 62. Rd3 {[%emt 0:01:24]} (62. Ra5 $16) 62... Bf5 {[%emt 0:00:17]} (62... f6+ $11 63. Kd4 g5) 63. Rd6 {[%emt 0:00:06]} Bh3 {[%emt 0:00:18]} 64. Kd5 {[%emt 0:00:49]} Kf8 {[%emt 0:01:24]} 65. Kc6 {[%emt 0:00:12]} Ke7 {[%emt 0:00:20]} 66. Kc7 {[%emt 0:00:16]} Be6 {[%emt 0:00:21]} 67. Ra6 {[%emt 0:00:30]} Bg4 {[%emt 0:00:48]} 68. Ra5 {[%emt 0:00:20]} Bh3 {[%emt 0:01:16]} 69. Re5+ {[%emt 0:00:08]} Be6 {[%emt 0:00:06]} 70. Kc6 {[%emt 0:00:30]} Kf6 {[%emt 0:00:07]} 71. Kd6 {[%emt 0:00:13]} Bg4 {[%emt 0:01:15]} 72. Kc7 {[%emt 0:00:29]} Be6 {[%emt 0:02:26]} 73. Kd8 {[%emt 0:00:17]} Bg4 {[%emt 0:00:58]} 74. Ke8 {[%emt 0:00:10]} Bf5 {[%emt 0:00:44]} 75. Kd8 {[%emt 0:01:21]} (75. Ra5 $14) 75... Be6 {[%emt 0:00:12]} (75... Bg4 $11) 76. Kc7 {[%emt 0:00:09]} ({Besser ist} 76. Rb5 $14) 76... Bg4 {[%emt 0:00:18]} 77. Kc6 {[%emt 0:00:07]} Bf5 {[%emt 0:00:15]} 78. Kd5 {[%emt 0:00:09]} Bh3 {[%emt 0:00:23]} 79. Ke4 {[%emt 0:00:07]} Bg2+ {[%emt 0:00:22]} 80. Kd4 {[%emt 0:00:16]} Bh3 {[%emt 0:00:06]} 81. Ra5 {[%emt 0:00:15]} Be6 {[%emt 0:00:23]} 82. Ke4 {[%emt 0:00:14]} Bg4 {[%emt 0:01:26]} 83. Ra6+ {[%emt 0:00:15]} (83. Ra8 $14 {ist eher angebracht.}) 83... Kg7 $16 {[%emt 0:00:06]} 84. Ke5 {[%emt 0:00:18]} Bh3 $1 {[%emt 0:00:18]} 85. Rc6 {[%emt 0:02:32]} Bg4 {[%emt 0:00:12]} 86. Kd4 {[%emt 0:01:14]} Kf8 {[%emt 0:00:40]} 87. Rd6 {[%emt 0:00:22]} Bf5 {[%emt 0:00:49]} 88. Kd5 {[%emt 0:00:09]} (88. Ke5 $16 {Zielt auf Kf6 ab.} Kg7 89. Rc6) 88... Bg4 {[%emt 0:00:12]} (88... Bh3 $1 $11 {bleibt in der Remisbreite.}) 89. Rb6 {[%emt 0:00:44]} Kg7 {[%emt 0:00:08]} 90. Kc5 {[%emt 0:00:05]} Bf5 {[%emt 0:01:03]} 91. Kb5 {[%emt 0:00:48]} (91. Kd4 $16) 91... Bg4 {[%emt 0:01:07] [#]} (91... Be6 $1 $11 {hält das Gleichgewicht.}) 92. Rd6 {[%emt 0:00:41]} (92. Kc4 $1 $16) 92... Kf8 {[%emt 0:00:08]} (92... Be6 $1 $11) 93. Kc5 {[%emt 0:01:27]} Ke7 {[%emt 0:00:10]} 94. Kd5 {[%emt 0:01:31]} (94. Rb6 $16) 94... Be6+ {[%emt 0:00:08] Schwarz hat sich erfolgreich gewehrt.   Gewichteter Fehlerwert: Weiß=0.15 (sehr präzise) /Schwarz=0.17 (sehr präzise) .  Verlustzug:     	---       	Schwarz=1     Fehler:       	Weiß=11    	Schwarz=9     Ungenau:       	Weiß=5     	Schwarz=5     OK:         	Weiß=27    	Schwarz=30    Bester:       	Weiß=5     	Schwarz=7     Stark:        	Weiß=1     	Schwarz=3} 1/2-1/2